[Event "*** Titled Tuesday 3|2 Blitz"]
[Site "Chess.com"]
[Date "2016.07.05"]
[Round "6"]
[White "Alliswell998"]
[Black "proxy6"]
[Result "1-0"]
[WhiteElo "2170"]
[BlackElo "1886"]
[TimeControl "180+2"]
[EndTime "12:13:47 PDT"]
[Termination "Alliswell998 won by resignation"]

1. e4 {[%clk 0:03:01.9]} 1... c5 {[%clk 0:02:59.8]} 2. Nc3 {[%clk 0:02:57.3]}
2... Nc6 {[%clk 0:02:58.1]} 3. f4 {[%clk 0:02:53.9]} 3... g6 {[%clk 0:02:53.3]}
4. Nf3 {[%clk 0:02:54]} 4... Bg7 {[%clk 0:02:53.4]} 5. Bb5 {[%clk 0:02:55.2]}
5... Nd4 {[%clk 0:02:50.8]} 6. O-O {[%clk 0:02:56.1]} 6... Nxb5 {[%clk
0:02:39.4]} 7. Nxb5 {[%clk 0:02:58]} 7... a6 {[%clk 0:02:40.6]} 8. Nc3 {[%clk
0:02:58.6]} 8... e6 {[%clk 0:02:38.4]} 9. e5 {[%clk 0:02:58.8]} 9... d5 {[%clk
0:02:35]} 10. d4 {[%clk 0:02:54]} 10... c4 {[%clk 0:02:31.1]} 11. b3 {[%clk
0:02:38.6]} 11... b5 {[%clk 0:02:20.1]} 12. Kh1 {[%clk 0:02:25]} 12... Ne7
{[%clk 0:02:17.1]} 13. Qe1 {[%clk 0:02:14.7]} 13... O-O {[%clk 0:02:14.9]} 14.
Ba3 {[%clk 0:02:14.3]} 14... Bd7 {[%clk 0:02:05.4]} 15. Bd6 {[%clk 0:02:03.4]}
15... Re8 {[%clk 0:02:03.5]} 16. g4 {[%clk 0:01:54.2]} 16... Nc8 {[%clk
0:01:55.9]} 17. Bc5 {[%clk 0:01:50.7]} 17... a5 {[%clk 0:01:42.8]} 18. Qg3
{[%clk 0:01:43.8]} 18... b4 {[%clk 0:01:34.1]} 19. Nd1 {[%clk 0:01:34.6]} 19...
Bb5 {[%clk 0:01:32.8]} 20. Rg1 {[%clk 0:01:30.2]} 20... a4 {[%clk 0:01:27.5]}
21. Ne3 {[%clk 0:01:23]} 21... Qa5 {[%clk 0:01:10.6]} 22. bxc4 {[%clk
0:01:12.2]} 22... dxc4 {[%clk 0:00:58.3]} 23. f5 {[%clk 0:01:10.1]} 23... Bc6
{[%clk 0:00:37.2]} 24. Raf1 {[%clk 0:00:54.7]} 24... b3 {[%clk 0:00:19]} 25.
Nxc4 {[%clk 0:00:45.7]} 25... Qb5 {[%clk 0:00:19.3]} 26. axb3 {[%clk 0:00:41.9]}
26... axb3 {[%clk 0:00:21.2]} 27. cxb3 {[%clk 0:00:40.4]} 27... Qxb3 {[%clk
0:00:22]} 28. Nd2 {[%clk 0:00:33.7]} 28... Ra2 {[%clk 0:00:18]} 29. Nxb3 {[%clk
0:00:33.2]} 1-0

[Event "*** Titled Tuesday 3|2 Blitz"]
[Site "Chess.com"]
[Date "2016.07.05"]
[Round "6"]
[White "amaidel"]
[Black "ChessNinja48"]
[Result "0-1"]
[WhiteElo "2431"]
[BlackElo "2330"]
[TimeControl "180+2"]
[EndTime "12:13:49 PDT"]
[Termination "ChessNinja48 won by checkmate"]

1. e4 {[%clk 0:03:01.9]} 1... e6 {[%clk 0:02:59.8]} 2. d4 {[%clk 0:03:02.1]}
2... d5 {[%clk 0:02:58.2]} 3. Nc3 {[%clk 0:03:03.1]} 3... Bb4 {[%clk 0:02:49.9]}
4. e5 {[%clk 0:03:03.7]} 4... c5 {[%clk 0:02:50.6]} 5. a3 {[%clk 0:03:04.7]}
5... Bxc3+ {[%clk 0:02:52]} 6. bxc3 {[%clk 0:03:06.6]} 6... Ne7 {[%clk
0:02:53.8]} 7. Qg4 {[%clk 0:03:06.9]} 7... O-O {[%clk 0:02:54.8]} 8. Bd3 {[%clk
0:03:08]} 8... Nbc6 {[%clk 0:02:55]} 9. Nf3 {[%clk 0:03:08.2]} 9... f5 {[%clk
0:02:56.1]} 10. exf6 {[%clk 0:03:08.2]} 10... Rxf6 {[%clk 0:02:57]} 11. Bg5
{[%clk 0:03:08]} 11... e5 {[%clk 0:02:58.2]} 12. Bxh7+ {[%clk 0:03:04.7]} 12...
Kxh7 {[%clk 0:02:53.5]} 13. Qh5+ {[%clk 0:03:05.4]} 13... Kg8 {[%clk 0:02:42.3]}
14. Bxf6 {[%clk 0:03:05.7]} 14... gxf6 {[%clk 0:02:43]} 15. dxe5 {[%clk
0:03:06.3]} 15... Qf8 {[%clk 0:02:35.1]} 16. O-O {[%clk 0:03:04.7]} 16... Bf5
{[%clk 0:02:21.4]} 17. Rfe1 {[%clk 0:03:04]} 17... Bxc2 {[%clk 0:02:01.2]} 18.
Re3 {[%clk 0:02:29]} 18... d4 {[%clk 0:01:28.1]} 19. cxd4 {[%clk 0:02:29]} 19...
cxd4 {[%clk 0:01:29.5]} 20. Nxd4 {[%clk 0:02:28]} 20... Nxd4 {[%clk 0:01:30.6]}
21. Qg4+ {[%clk 0:02:28.6]} 21... Bg6 {[%clk 0:00:50.8]} 22. Qxd4 {[%clk
0:02:27.8]} 22... fxe5 {[%clk 0:00:23.7]} 23. Qxe5 {[%clk 0:02:26.8]} 23... Re8
{[%clk 0:00:22.9]} 24. Rg3 {[%clk 0:02:19.6]} 24... Qf7 {[%clk 0:00:20.8]} 25.
h4 {[%clk 0:02:17.1]} 25... Nf5 {[%clk 0:00:20.4]} 26. Qf4 {[%clk 0:02:14.6]}
26... Nxg3 {[%clk 0:00:20]} 27. Qxg3 {[%clk 0:02:13.6]} 27... Qg7 {[%clk
0:00:20.5]} 28. Rc1 {[%clk 0:02:13.9]} 28... Be4 {[%clk 0:00:21.3]} 29. Qxg7+
{[%clk 0:02:10.9]} 29... Kxg7 {[%clk 0:00:23.2]} 30. f3 {[%clk 0:02:12.2]} 30...
Bc6 {[%clk 0:00:24.1]} 31. Kf2 {[%clk 0:02:12.8]} 31... a5 {[%clk 0:00:24.8]}
32. Rc5 {[%clk 0:02:12.4]} 32... a4 {[%clk 0:00:25.1]} 33. g4 {[%clk 0:02:12.1]}
33... Rd8 {[%clk 0:00:21.2]} 34. Rc3 {[%clk 0:02:07.5]} 34... Rd2+ {[%clk
0:00:20.9]} 35. Kg3 {[%clk 0:02:08]} 35... Rb2 {[%clk 0:00:22.8]} 36. Re3 {[%clk
0:02:01.5]} 36... Rb3 {[%clk 0:00:23]} 37. Kf4 {[%clk 0:02:00.7]} 37... b5
{[%clk 0:00:13.8]} 38. h5 {[%clk 0:01:55.6]} 38... Rxe3 {[%clk 0:00:10.6]} 39.
Kxe3 {[%clk 0:01:56.5]} 39... b4 {[%clk 0:00:12.1]} 40. Kd2 {[%clk 0:01:55.4]}
40... b3 {[%clk 0:00:09.8]} 41. f4 {[%clk 0:01:55.3]} 41... Bf3 {[%clk
0:00:10.5]} 42. g5 {[%clk 0:01:56.2]} 42... Bxh5 {[%clk 0:00:11.9]} 43. Kc3
{[%clk 0:01:56.9]} 43... Kg6 {[%clk 0:00:12.7]} 44. Kb4 {[%clk 0:01:58.2]} 44...
b2 {[%clk 0:00:13.5]} 45. Kxa4 {[%clk 0:01:59.9]} 45... b1=Q {[%clk 0:00:15]}
46. Ka5 {[%clk 0:02:01.1]} 46... Bf3 {[%clk 0:00:16.1]} 47. a4 {[%clk
0:02:01.7]} 47... Kf5 {[%clk 0:00:17.1]} 48. g6 {[%clk 0:02:02.5]} 48... Kxg6
{[%clk 0:00:17.9]} 49. f5+ {[%clk 0:02:03.8]} 49... Kxf5 {[%clk 0:00:19.3]} 50.
Ka6 {[%clk 0:02:04.7]} 50... Qb4 {[%clk 0:00:17.9]} 51. a5 {[%clk 0:02:05.6]}
51... Qb7# {[%clk 0:00:18.9]} 0-1

[Event "*** Titled Tuesday 3|2 Blitz"]
[Site "Chess.com"]
[Date "2016.07.05"]
[Round "6"]
[White "OparinGrigoriy"]
[Black "Frolyanov_D"]
[Result "1-0"]
[WhiteElo "2647"]
[BlackElo "2460"]
[TimeControl "180+2"]
[EndTime "12:13:59 PDT"]
[Termination "OparinGrigoriy won by resignation"]

1. e4 {[%clk 0:03:01.9]} 1... e5 {[%clk 0:03:00.4]} 2. Nf3 {[%clk 0:03:02.8]}
2... Nf6 {[%clk 0:03:01.5]} 3. Nxe5 {[%clk 0:03:02.5]} 3... d6 {[%clk
0:03:01.6]} 4. Nf3 {[%clk 0:03:03.9]} 4... Nxe4 {[%clk 0:03:02.5]} 5. Nc3 {[%clk
0:03:05.5]} 5... Nxc3 {[%clk 0:03:03.4]} 6. dxc3 {[%clk 0:03:07.4]} 6... Be7
{[%clk 0:03:04.6]} 7. Be3 {[%clk 0:03:08.9]} 7... O-O {[%clk 0:03:06.1]} 8. Qd2
{[%clk 0:03:10.5]} 8... Nd7 {[%clk 0:03:06]} 9. O-O-O {[%clk 0:03:11.9]} 9... c6
{[%clk 0:03:05.8]} 10. Bd3 {[%clk 0:03:11.6]} 10... Nb6 {[%clk 0:02:59.5]} 11.
Kb1 {[%clk 0:03:08.7]} 11... Be6 {[%clk 0:02:59.1]} 12. Ng5 {[%clk 0:03:03.3]}
12... Bxg5 {[%clk 0:02:43.8]} 13. Bxg5 {[%clk 0:03:05.2]} 13... f6 {[%clk
0:02:43]} 14. Bf4 {[%clk 0:03:04.2]} 14... Nd5 {[%clk 0:02:28.2]} 15. Bg3 {[%clk
0:03:02]} 15... b5 {[%clk 0:02:22.5]} 16. h4 {[%clk 0:02:59.6]} 16... Re8 {[%clk
0:01:50.8]} 17. h5 {[%clk 0:03:00.5]} 17... Qa5 {[%clk 0:01:49.6]} 18. a3 {[%clk
0:02:57.4]} 18... Rad8 {[%clk 0:01:26.4]} 19. h6 {[%clk 0:02:56.2]} 19... g6
{[%clk 0:01:26.9]} 20. Rhe1 {[%clk 0:02:57.7]} 20... Qa4 {[%clk 0:01:17.2]} 21.
Re4 {[%clk 0:02:54.9]} 21... Qa5 {[%clk 0:01:03.2]} 22. Rde1 {[%clk 0:02:55]}
22... Bf7 {[%clk 0:01:04.3]} 23. Rxe8+ {[%clk 0:02:51.2]} 23... Rxe8 {[%clk
0:01:06.2]} 24. Bxd6 {[%clk 0:02:52.4]} 24... Rd8 {[%clk 0:00:47.3]} 25. Bc5
{[%clk 0:02:52.2]} 25... Qc7 {[%clk 0:00:47.2]} 26. Qe2 {[%clk 0:02:47.4]} 26...
Nf4 {[%clk 0:00:33]} 27. Qf3 {[%clk 0:02:45.4]} 27... Nxd3 {[%clk 0:00:17.7]}
28. cxd3 {[%clk 0:02:47.3]} 28... Qd7 {[%clk 0:00:11.1]} 29. Bd4 {[%clk
0:02:42.1]} 29... Re8 {[%clk 0:00:06.7]} 30. Re3 {[%clk 0:02:28.4]} 30... Rxe3
{[%clk 0:00:06.9]} 31. fxe3 {[%clk 0:02:29.6]} 31... Qe6 {[%clk 0:00:04.3]} 32.
Kc1 {[%clk 0:02:24.2]} 32... a5 {[%clk 0:00:03.9]} 33. e4 {[%clk 0:02:21.7]}
33... a4 {[%clk 0:00:04.7]} 34. Qxf6 {[%clk 0:02:15.1]} 34... Qxf6 {[%clk
0:00:05.6]} 35. Bxf6 {[%clk 0:02:17]} 35... Bb3 {[%clk 0:00:06.2]} 36. Kd2
{[%clk 0:02:18]} 36... Kf7 {[%clk 0:00:07.3]} 37. Bg5 {[%clk 0:02:19]} 37... Ke6
{[%clk 0:00:08.1]} 38. Ke3 {[%clk 0:02:20.6]} 38... Bc2 {[%clk 0:00:08.9]} 39.
Kd4 {[%clk 0:02:20.3]} 39... Bb1 {[%clk 0:00:09.7]} 40. g3 {[%clk 0:02:19.5]}
40... Bc2 {[%clk 0:00:10.6]} 41. Bd8 {[%clk 0:02:19.9]} 41... Bb1 {[%clk
0:00:11.4]} 42. Bb6 {[%clk 0:02:19.9]} 42... Bc2 {[%clk 0:00:12.4]} 43. c4
{[%clk 0:02:21.2]} 43... Bb1 {[%clk 0:00:12]} 44. cxb5 {[%clk 0:02:22.2]} 44...
cxb5 {[%clk 0:00:13.1]} 45. Ke3 {[%clk 0:02:23.6]} 45... Bc2 {[%clk 0:00:12.3]}
46. d4 {[%clk 0:02:25.1]} 46... Bb3 {[%clk 0:00:13.1]} 47. d5+ {[%clk 0:02:26]}
47... Ke5 {[%clk 0:00:09.8]} 48. Bc7+ {[%clk 0:02:27]} 48... Kf6 {[%clk
0:00:10.6]} 49. Kd4 {[%clk 0:02:23.4]} 49... Ke7 {[%clk 0:00:10.8]} 50. Bf4
{[%clk 0:02:24.3]} 50... Kf6 {[%clk 0:00:11.1]} 51. e5+ {[%clk 0:02:24.5]} 51...
Kf5 {[%clk 0:00:11.3]} 52. e6 {[%clk 0:02:26]} 52... Kf6 {[%clk 0:00:12.6]} 53.
Bg5+ {[%clk 0:02:26.5]} 1-0

[Event "*** Titled Tuesday 3|2 Blitz"]
[Site "Chess.com"]
[Date "2016.07.05"]
[Round "6"]
[White "stefanodinn"]
[Black "yopino"]
[Result "0-1"]
[WhiteElo "2257"]
[BlackElo "2412"]
[TimeControl "180+2"]
[EndTime "12:13:59 PDT"]
[Termination "yopino won by resignation"]

1. e4 {[%clk 0:03:01.9]} 1... c5 {[%clk 0:03:00.9]} 2. Nf3 {[%clk 0:03:01.8]}
2... g6 {[%clk 0:03:00.4]} 3. c3 {[%clk 0:02:58.2]} 3... Bg7 {[%clk 0:02:34]} 4.
d4 {[%clk 0:02:58.9]} 4... cxd4 {[%clk 0:02:32]} 5. cxd4 {[%clk 0:02:59.8]} 5...
d5 {[%clk 0:02:33.6]} 6. exd5 {[%clk 0:03:00.5]} 6... Nf6 {[%clk 0:02:31.7]} 7.
Bb5+ {[%clk 0:03:01.1]} 7... Nbd7 {[%clk 0:02:30.7]} 8. d6 {[%clk 0:03:00.9]}
8... exd6 {[%clk 0:02:18.6]} 9. Qe2+ {[%clk 0:03:00]} 9... Qe7 {[%clk
0:02:15.5]} 10. Bf4 {[%clk 0:02:57.4]} 10... Qxe2+ {[%clk 0:02:10.3]} 11. Kxe2
{[%clk 0:02:47.3]} 11... O-O {[%clk 0:02:03.6]} 12. Rd1 {[%clk 0:02:24.2]} 12...
Re8+ {[%clk 0:02:00.4]} 13. Kf1 {[%clk 0:02:24.9]} 13... a6 {[%clk 0:01:58.1]}
14. Bd3 {[%clk 0:01:53.4]} 14... Bf8 {[%clk 0:01:56.9]} 15. Nc3 {[%clk 0:01:52]}
15... b5 {[%clk 0:01:55.8]} 16. Re1 {[%clk 0:00:55.3]} 16... Bb7 {[%clk
0:01:56.4]} 17. Ng5 {[%clk 0:00:56.3]} 17... Nb6 {[%clk 0:01:51]} 18. Nge4
{[%clk 0:00:50.5]} 18... Nxe4 {[%clk 0:01:36.9]} 19. Nxe4 {[%clk 0:00:46]} 19...
Nd5 {[%clk 0:01:27.4]} 20. Bg3 {[%clk 0:00:26.7]} 20... Rad8 {[%clk 0:01:23.5]}
21. a3 {[%clk 0:00:26.3]} 21... f5 {[%clk 0:01:18.3]} 22. Ng5 {[%clk 0:00:19.6]}
22... Be7 {[%clk 0:01:17.8]} 23. Ne6 {[%clk 0:00:19.5]} 23... Rc8 {[%clk
0:01:16.8]} 24. Nf4 {[%clk 0:00:12.1]} 24... Nb6 {[%clk 0:01:06.2]} 25. Rac1
{[%clk 0:00:10.3]} 25... Rxc1 {[%clk 0:01:00]} 26. Rxc1 {[%clk 0:00:10.6]} 26...
g5 {[%clk 0:00:59]} 27. Ne6 {[%clk 0:00:02.6]} 27... f4 {[%clk 0:00:56.7]} 28.
Rc7 {[%clk 0:00:03.3]} 28... fxg3 {[%clk 0:00:50.7]} 29. Rxb7 {[%clk 0:00:03.5]}
29... gxh2 {[%clk 0:00:47.2]} 0-1

[Event "*** Titled Tuesday 3|2 Blitz"]
[Site "Chess.com"]
[Date "2016.07.05"]
[Round "6"]
[White "SmoothAsAHedgehog"]
[Black "ruifeng"]
[Result "1-0"]
[WhiteElo "2507"]
[BlackElo "2322"]
[TimeControl "180+2"]
[EndTime "12:13:59 PDT"]
[Termination "SmoothAsAHedgehog won by resignation"]

1. d4 {[%clk 0:02:59.6]} 1... g6 {[%clk 0:02:59.5]} 2. e4 {[%clk 0:02:59.4]}
2... Bg7 {[%clk 0:03:00.7]} 3. Nc3 {[%clk 0:02:54.8]} 3... d6 {[%clk 0:02:59.8]}
4. Be3 {[%clk 0:02:55.1]} 4... Nd7 {[%clk 0:02:52.4]} 5. Qd2 {[%clk 0:02:54.6]}
5... c5 {[%clk 0:02:52.9]} 6. f3 {[%clk 0:02:52.5]} 6... cxd4 {[%clk 0:02:53.3]}
7. Bxd4 {[%clk 0:02:53]} 7... Ngf6 {[%clk 0:02:54.6]} 8. h4 {[%clk 0:02:52.2]}
8... h5 {[%clk 0:02:45.9]} 9. Nh3 {[%clk 0:02:50.8]} 9... a6 {[%clk 0:02:41.3]}
10. Ng5 {[%clk 0:02:50.2]} 10... O-O {[%clk 0:02:41.4]} 11. O-O-O {[%clk
0:02:37]} 11... b5 {[%clk 0:02:40.3]} 12. Nd5 {[%clk 0:02:25.5]} 12... Nxd5
{[%clk 0:02:38.6]} 13. Bxg7 {[%clk 0:02:22]} 13... Kxg7 {[%clk 0:02:39.3]} 14.
exd5 {[%clk 0:02:11.1]} 14... Nf6 {[%clk 0:02:33.4]} 15. Ne4 {[%clk 0:02:10]}
15... Nxe4 {[%clk 0:02:33.2]} 16. fxe4 {[%clk 0:02:11.9]} 16... Bg4 {[%clk
0:02:33.1]} 17. Be2 {[%clk 0:02:11.9]} 17... Qd7 {[%clk 0:02:33.8]} 18. Rdf1
{[%clk 0:02:05.7]} 18... Rac8 {[%clk 0:02:22.4]} 19. Rf4 {[%clk 0:01:57.5]}
19... Bxe2 {[%clk 0:02:15.8]} 20. Qxe2 {[%clk 0:01:59.4]} 20... Rc4 {[%clk
0:02:16.3]} 21. g4 {[%clk 0:01:43.9]} 21... hxg4 {[%clk 0:01:49.6]} 22. h5
{[%clk 0:01:31]} 22... Rfc8 {[%clk 0:01:43.2]} 23. c3 {[%clk 0:01:28]} 23... g5
{[%clk 0:01:36.3]} 24. h6+ {[%clk 0:01:25.6]} 24... Kg6 {[%clk 0:01:33.7]} 25.
Rxg4 {[%clk 0:00:57.2]} 25... f6 {[%clk 0:01:12.5]} 26. Rxg5+ {[%clk 0:00:38.7]}
26... Kh7 {[%clk 0:00:33.8]} 27. Rg7+ {[%clk 0:00:36.4]} 27... Kh8 {[%clk
0:00:35]} 28. Qg2 {[%clk 0:00:34]} 1-0

[Event "*** Titled Tuesday 3|2 Blitz"]
[Site "Chess.com"]
[Date "2016.07.05"]
[Round "6"]
[White "Usurpov"]
[Black "FearlessKing64"]
[Result "1-0"]
[WhiteElo "2334"]
[BlackElo "2120"]
[TimeControl "180+2"]
[EndTime "12:14:00 PDT"]
[Termination "Usurpov won on time"]

1. e4 {[%clk 0:03:01.9]} 1... c5 {[%clk 0:03:00.1]} 2. Nf3 {[%clk 0:03:02.1]}
2... d6 {[%clk 0:03:01.3]} 3. Bb5+ {[%clk 0:03:01.1]} 3... Bd7 {[%clk
0:03:01.3]} 4. a4 {[%clk 0:02:57.4]} 4... Nc6 {[%clk 0:02:58.6]} 5. O-O {[%clk
0:02:50.1]} 5... g6 {[%clk 0:02:55]} 6. Re1 {[%clk 0:02:49.6]} 6... Bg7 {[%clk
0:02:55.6]} 7. c3 {[%clk 0:02:50.9]} 7... e5 {[%clk 0:02:47.4]} 8. Na3 {[%clk
0:02:44.8]} 8... Nge7 {[%clk 0:02:44.5]} 9. Nc4 {[%clk 0:02:40]} 9... Qc7 {[%clk
0:02:44.9]} 10. d3 {[%clk 0:02:06.9]} 10... b6 {[%clk 0:02:31.7]} 11. Bg5 {[%clk
0:01:57.6]} 11... f6 {[%clk 0:02:23.3]} 12. Bd2 {[%clk 0:01:55.7]} 12... g5
{[%clk 0:02:19.7]} 13. Ne3 {[%clk 0:01:16.8]} 13... h5 {[%clk 0:01:56.3]} 14. b4
{[%clk 0:01:06.8]} 14... h4 {[%clk 0:01:51.7]} 15. h3 {[%clk 0:00:46.3]} 15...
Qc8 {[%clk 0:01:14.2]} 16. Nd5 {[%clk 0:00:39.4]} 16... Nxd5 {[%clk 0:01:07.3]}
17. exd5 {[%clk 0:00:40]} 17... Ne7 {[%clk 0:01:06.3]} 18. d4 {[%clk 0:00:37.8]}
18... c4 {[%clk 0:00:53.7]} 19. dxe5 {[%clk 0:00:34.7]} 19... dxe5 {[%clk
0:00:50.8]} 20. Bxg5 {[%clk 0:00:21.1]} 20... Bxb5 {[%clk 0:00:33.4]} 21. axb5
{[%clk 0:00:23]} 21... fxg5 {[%clk 0:00:24.5]} 22. Nxg5 {[%clk 0:00:23.4]} 22...
Bf6 {[%clk 0:00:15]} 23. Ne4 {[%clk 0:00:22.6]} 23... Bg7 {[%clk 0:00:09]} 24.
Nd6+ {[%clk 0:00:23.5]} 24... Kd7 {[%clk 0:00:05.5]} 25. Nxc8 {[%clk 0:00:25.4]}
25... Kxc8 {[%clk 0:00:07.3]} 26. d6 {[%clk 0:00:26.5]} 26... Nf5 {[%clk
0:00:06.9]} 27. Qf3 {[%clk 0:00:28]} 1-0

[Event "*** Titled Tuesday 3|2 Blitz"]
[Site "Chess.com"]
[Date "2016.07.05"]
[Round "6"]
[White "WanderingPuppet"]
[Black "FCChelsea14"]
[Result "0-1"]
[WhiteElo "2282"]
[BlackElo "2412"]
[TimeControl "180+2"]
[EndTime "12:14:26 PDT"]
[Termination "FCChelsea14 won by resignation"]

1. e4 {[%clk 0:03:01.9]} 1... c6 {[%clk 0:03:00.3]} 2. Nc3 {[%clk 0:02:58]} 2...
d5 {[%clk 0:03:01]} 3. Nf3 {[%clk 0:02:59.7]} 3... Bg4 {[%clk 0:03:01.1]} 4. d4
{[%clk 0:02:59.2]} 4... e6 {[%clk 0:02:56.1]} 5. h3 {[%clk 0:02:58.8]} 5... Bxf3
{[%clk 0:02:57.1]} 6. gxf3 {[%clk 0:03:00.7]} 6... Nf6 {[%clk 0:02:56.2]} 7. Qd3
{[%clk 0:02:59]} 7... Nbd7 {[%clk 0:02:55.6]} 8. Be3 {[%clk 0:02:53.3]} 8... Bb4
{[%clk 0:02:55.8]} 9. Rg1 {[%clk 0:02:46.9]} 9... g6 {[%clk 0:02:53.7]} 10. e5
{[%clk 0:02:29.3]} 10... Nh5 {[%clk 0:02:53.7]} 11. a3 {[%clk 0:02:24.9]} 11...
Qa5 {[%clk 0:02:53]} 12. Bd2 {[%clk 0:02:26.3]} 12... c5 {[%clk 0:02:43.5]} 13.
O-O-O {[%clk 0:01:32.1]} 13... c4 {[%clk 0:02:41.4]} 14. Qe3 {[%clk 0:01:30.7]}
14... Bxc3 {[%clk 0:02:33.5]} 15. Bxc3 {[%clk 0:01:32.6]} 15... Qc7 {[%clk
0:02:34]} 16. Bb4 {[%clk 0:01:32.5]} 16... Ng7 {[%clk 0:02:30.3]} 17. h4 {[%clk
0:01:18]} 17... Nf5 {[%clk 0:02:30.3]} 18. Qf4 {[%clk 0:01:18.5]} 18... a5
{[%clk 0:02:31.1]} 19. Bd6 {[%clk 0:01:05.4]} 19... Qd8 {[%clk 0:02:28.4]} 20.
h5 {[%clk 0:00:54.1]} 20... Nxd6 {[%clk 0:02:26.6]} 21. exd6 {[%clk 0:00:53.3]}
21... Qf6 {[%clk 0:02:27.7]} 22. Qg3 {[%clk 0:00:21.5]} 22... O-O-O {[%clk
0:02:16.6]} 23. Bh3 {[%clk 0:00:13.9]} 23... Rhg8 {[%clk 0:02:16.8]} 24. h6
{[%clk 0:00:15.1]} 24... g5 {[%clk 0:02:14.7]} 25. Rh1 {[%clk 0:00:14.2]} 25...
Qxh6 {[%clk 0:02:11.2]} 26. Bf5 {[%clk 0:00:15.4]} 26... Qf6 {[%clk 0:02:09.1]}
27. Bg4 {[%clk 0:00:14.4]} 27... h6 {[%clk 0:02:08.9]} 28. Kb1 {[%clk
0:00:14.1]} 28... Nf8 {[%clk 0:02:06.7]} 29. Rhe1 {[%clk 0:00:12.5]} 29... Qf4
{[%clk 0:02:06]} 30. Qg1 {[%clk 0:00:13.6]} 30... Rxd6 {[%clk 0:02:06]} 31. Qf1
{[%clk 0:00:14]} 31... Kb8 {[%clk 0:02:01.1]} 32. Qe2 {[%clk 0:00:15]} 32... Nd7
{[%clk 0:02:01.4]} 33. Rh1 {[%clk 0:00:15.9]} 33... Qf6 {[%clk 0:02:01.1]} 34.
Qd2 {[%clk 0:00:16.3]} 34... Ra6 {[%clk 0:01:57.4]} 35. Rde1 {[%clk 0:00:15.8]}
35... Rc8 {[%clk 0:01:58.1]} 36. c3 {[%clk 0:00:15.9]} 36... Qg6+ {[%clk
0:01:56.4]} 37. Ka2 {[%clk 0:00:15.1]} 37... f5 {[%clk 0:01:57.4]} 38. Qc2
{[%clk 0:00:14.9]} 38... Qf6 {[%clk 0:01:56.1]} 39. Bh5 {[%clk 0:00:14]} 39...
b5 {[%clk 0:01:56.9]} 40. Kb1 {[%clk 0:00:08.3]} 40... Kc7 {[%clk 0:01:56.9]}
41. f4 {[%clk 0:00:07.4]} 41... g4 {[%clk 0:01:53.3]} 42. f3 {[%clk 0:00:09]}
42... g3 {[%clk 0:01:51.1]} 43. Reg1 {[%clk 0:00:09.8]} 43... Rg8 {[%clk
0:01:52]} 44. Rh3 {[%clk 0:00:11.4]} 44... Raa8 {[%clk 0:01:47.3]} 45. Rhxg3
{[%clk 0:00:12.2]} 45... Rxg3 {[%clk 0:01:48.2]} 46. Rxg3 {[%clk 0:00:14.1]}
46... Qh4 {[%clk 0:01:49.8]} 47. Rg6 {[%clk 0:00:11.9]} 47... Qh1+ {[%clk
0:01:49.2]} 48. Ka2 {[%clk 0:00:10.7]} 48... b4 {[%clk 0:01:50.4]} 49. cxb4
{[%clk 0:00:10.2]} 49... axb4 {[%clk 0:01:51.5]} 0-1

[Event "*** Titled Tuesday 3|2 Blitz"]
[Site "Chess.com"]
[Date "2016.07.05"]
[Round "6"]
[White "Mornar1951"]
[Black "mwpchess"]
[Result "0-1"]
[WhiteElo "2493"]
[BlackElo "2433"]
[TimeControl "180+2"]
[EndTime "12:14:27 PDT"]
[Termination "mwpchess won by resignation"]

1. Nf3 {[%clk 0:03:01.9]} 1... d5 {[%clk 0:02:59.3]} 2. d4 {[%clk 0:03:02.1]}
2... Nf6 {[%clk 0:02:59.1]} 3. c4 {[%clk 0:03:03.5]} 3... e6 {[%clk 0:02:59.7]}
4. g3 {[%clk 0:03:03.7]} 4... Be7 {[%clk 0:02:58.5]} 5. Bg2 {[%clk 0:03:05.2]}
5... O-O {[%clk 0:02:59.1]} 6. O-O {[%clk 0:03:06]} 6... dxc4 {[%clk 0:02:57.7]}
7. Qc2 {[%clk 0:03:07.6]} 7... a6 {[%clk 0:02:57.3]} 8. a4 {[%clk 0:03:09.1]}
8... Bd7 {[%clk 0:02:56.5]} 9. Qxc4 {[%clk 0:03:08.7]} 9... Bc6 {[%clk
0:02:55.4]} 10. Bg5 {[%clk 0:03:10.1]} 10... Bd5 {[%clk 0:02:52.8]} 11. Qd3
{[%clk 0:03:10.5]} 11... c5 {[%clk 0:02:50.9]} 12. Nc3 {[%clk 0:03:10.9]} 12...
Bc6 {[%clk 0:02:49.1]} 13. Rfd1 {[%clk 0:03:11.6]} 13... Qa5 {[%clk 0:02:44.7]}
14. Ne5 {[%clk 0:02:53.9]} 14... Bxg2 {[%clk 0:02:43.7]} 15. Kxg2 {[%clk
0:02:55.8]} 15... cxd4 {[%clk 0:02:43.6]} 16. Qxd4 {[%clk 0:02:57.7]} 16... Rd8
{[%clk 0:02:41.9]} 17. Qc4 {[%clk 0:02:54.9]} 17... Qxe5 {[%clk 0:02:41.1]} 18.
Rxd8+ {[%clk 0:02:41.2]} 18... Bxd8 {[%clk 0:02:40.5]} 19. Bf4 {[%clk
0:02:39.4]} 19... Qa5 {[%clk 0:02:38.7]} 20. Qc8 {[%clk 0:02:37.8]} 20... Qb6
{[%clk 0:02:37.6]} 21. f3 {[%clk 0:02:36.5]} 21... g5 {[%clk 0:02:33.4]} 22.
Bxg5 {[%clk 0:02:23.2]} 22... Kg7 {[%clk 0:02:30.1]} 23. Rd1 {[%clk 0:02:21.1]}
23... Be7 {[%clk 0:02:24.2]} 24. Ne4 {[%clk 0:02:11.5]} 24... Qc6 {[%clk
0:02:24.6]} 25. Rc1 {[%clk 0:02:04]} 25... Qxc8 {[%clk 0:02:11.8]} 26. Rxc8
{[%clk 0:02:05.9]} 26... Nd5 {[%clk 0:02:05.2]} 27. Bd2 {[%clk 0:01:49.7]} 27...
b5 {[%clk 0:01:50.4]} 28. a5 {[%clk 0:01:46.2]} 28... Bb4 {[%clk 0:01:31.7]} 29.
Bxb4 {[%clk 0:01:18.5]} 29... Nxb4 {[%clk 0:01:32.2]} 30. Nd6 {[%clk 0:01:11.4]}
30... N4c6 {[%clk 0:01:32.6]} 31. Rc7 {[%clk 0:01:11.7]} 31... Ra7 {[%clk
0:01:33.2]} 32. Rc8 {[%clk 0:01:06.4]} 32... Rd7 {[%clk 0:01:23.3]} 33. Ne4
{[%clk 0:01:05.3]} 33... Rd8 {[%clk 0:01:21]} 34. Rc7 {[%clk 0:01:05.7]} 34...
Nxa5 {[%clk 0:01:20.2]} 35. Ng5 {[%clk 0:01:05.1]} 35... Rd7 {[%clk 0:01:19.6]}
36. Rc8 {[%clk 0:01:05.3]} 36... Nbc6 {[%clk 0:01:20.2]} 37. Kf2 {[%clk
0:01:04.6]} 37... h6 {[%clk 0:01:14.1]} 38. Ne4 {[%clk 0:01:05.2]} 38... Ne5
{[%clk 0:01:02.7]} 39. Nc5 {[%clk 0:01:03.6]} 39... Rd6 {[%clk 0:01:02.9]} 40.
Ra8 {[%clk 0:01:00.6]} 40... Nac4 {[%clk 0:01:00.6]} 41. b3 {[%clk 0:00:59.7]}
41... Nd2 {[%clk 0:00:56.8]} 42. b4 {[%clk 0:00:59.6]} 42... Ndc4 {[%clk
0:00:46.2]} 43. Nxa6 {[%clk 0:01:00.3]} 43... Rd2 {[%clk 0:00:46]} 44. Nc7
{[%clk 0:00:58.2]} 44... Nd3+ {[%clk 0:00:42.1]} 45. Kg1 {[%clk 0:00:57.7]}
45... Rxe2 {[%clk 0:00:42.4]} 46. Nxb5 {[%clk 0:00:58.9]} 46... Ne3 {[%clk
0:00:42.7]} 0-1